bitfinex-derivatives/quotes_BTCF0:USTF0_20210406
["timestamp","ask_amount","ask_price","bid_price","bid_amount"]
[1617739162278,1.0,58190.0,58189.0,0.10725655]
[1617739162481,0.01,58194.0,58189.0,0.10725655]
[1617739162679,0.01,58194.0,58189.0,0.37725655]
[1617739162878,1.0,58190.0,58189.0,0.37725655]
[1617739164284,1.10725655,58190.0,58189.0,0.37725655]
[1617739165785,0.10725655,58190.0,58189.0,0.37725655]
[1617739169595,1.10725655,58190.0,58189.0,0.37725655]
[1617739170096,0.10725655,58190.0,58189.0,0.37725655]
[1617739173701,1.10725655,58190.0,58189.0,0.37725655]
[1617739175706,0.10725655,58190.0,58189.0,0.37725655]
[1617739175906,1.10725655,58190.0,58189.0,0.37725655]
[1617739177811,0.10725655,58190.0,58189.0,0.37725655]
[1617739178012,1.10725655,58190.0,58189.0,0.37725655]
[1617739178412,0.10725655,58190.0,58189.0,0.37725655]
[1617739180614,1.10725655,58190.0,58189.0,0.37725655]
[1617739182516,0.10725655,58190.0,58189.0,0.37725655]
[1617739182714,1.10725655,58190.0,58189.0,0.37725655]
[1617739184120,0.10725655,58190.0,58189.0,0.37725655]
[1617739184317,1.10725655,58190.0,58189.0,0.37725655]
[1617739186517,0.10725655,58190.0,58189.0,0.37725655]
[1617739186717,1.10725655,58190.0,58189.0,0.37725655]
[1617739187116,0.10725655,58190.0,58189.0,0.37725655]
[1617739187718,1.10725655,58190.0,58189.0,0.37725655]
[1617739190720,0.10725655,58190.0,58189.0,0.37725655]
[1617739190922,1.10725655,58190.0,58189.0,0.37725655]
[1617739193625,0.10725655,58190.0,58189.0,0.37725655]
[1617739195731,1.10725655,58190.0,58189.0,0.37725655]
[1617739202739,2.60725655,58190.0,58189.0,0.37725655]
[1617739203139,1.10725655,58190.0,58189.0,0.37725655]
[1617739204543,0.10725655,58190.0,58189.0,0.37725655]
[1617739204744,1.10725655,58190.0,58189.0,0.37725655]
[1617739205147,0.10725655,58190.0,58189.0,0.37725655]
[1617739205346,1.10725655,58190.0,58189.0,0.37725655]
[1617739207447,0.10725655,58190.0,58189.0,0.37725655]
[1617739209847,0.09185655,58190.0,58189.0,0.37725655]
[1617739210449,0.14345655,58190.0,58189.0,0.37725655]
[1617739210848,0.09185655,58190.0,58189.0,0.37725655]
[1617739211149,0.01,58194.0,58189.0,0.37725655]
[1617739211352,1.0,58190.0,58189.0,0.37725655]
[1617739213052,1.01,58194.0,58189.0,0.37725655]
[1617739213454,0.01,58194.0,58189.0,0.37725655]
[1617739213652,0.01,58194.0,58190.0,0.051]
[1617739213854,0.01,58194.0,58189.0,0.37725655]
[1617739214058,0.01,58194.0,58191.0,0.40561]
[1617739214253,0.01,58194.0,58191.0,0.13561]
[1617739214453,0.01,58194.0,58192.0,0.27]
[1617739216154,0.01,58194.0,58192.0,0.3221]
[1617739216355,0.01,58194.0,58192.0,0.27]
[1617739220560,0.01,58194.0,58193.0,0.0515]
[1617739220762,0.01,58194.0,58192.0,0.82576252]
[1617739220961,1.01,58194.0,58193.0,0.27]
[1617739221161,1.01,58194.0,58192.0,0.82576252]
[1617739221363,0.01,58194.0,58193.0,0.82555589]
[1617739221568,0.01,58194.0,58193.0,2.32555589]
[1617739221763,0.01,58194.0,58193.0,0.82555589]
[1617739223163,1.01,58194.0,58193.0,0.82555589]
[1617739223364,0.01,58194.0,58193.0,0.82555589]
[1617739223566,0.64843227,58219.0,58193.0,2.32555589]
[1617739223567,0.66510216,58216.0,58193.0,2.32555589]
[1617739223766,0.66510216,58216.0,58194.0,0.0518]
[1617739223969,0.15666076,58216.0,58194.0,0.0518]
[1617739224170,0.15666076,58216.0,58195.0,0.27]
[1617739224368,1.14,58219.0,58212.0,0.55416926]
[1617739224568,0.14,58219.0,58218.0,0.10725655]
[1617739225170,1.14,58219.0,58218.0,0.37725655]
[1617739225971,0.14,58219.0,58218.0,0.37725655]
[1617739226774,1.14,58219.0,58218.0,0.37725655]
[1617739227371,0.14,58219.0,58218.0,0.37725655]
[1617739227571,0.14,58219.0,58218.0,0.42945655]
[1617739227773,1.14,58219.0,58218.0,0.87256876]
[1617739228172,1.14,58219.0,58218.0,0.37725655]
[1617739228372,1.14,58219.0,58218.0,0.50374655]
[1617739228572,1.14,58219.0,58218.0,0.99947422]
[1617739228573,1.24725655,58219.0,58218.0,0.99947422]
[1617739229174,0.24725655,58219.0,58218.0,0.99947422]
[1617739229772,1.24725655,58219.0,58218.0,0.99947422]
[1617739230172,0.24725655,58219.0,58218.0,0.99947422]
[1617739230373,0.24725655,58219.0,58218.0,0.50374655]
[1617739230773,1.24725655,58219.0,58218.0,0.50374655]
[1617739230974,0.24725655,58219.0,58218.0,0.50374655]
[1617739232277,1.24725655,58219.0,58218.0,0.50374655]
[1617739233877,0.24725655,58219.0,58218.0,0.50374655]
[1617739234681,0.14,58219.0,58218.0,0.55564655]
[1617739234879,0.14,58219.0,58218.0,0.50374655]
[1617739236281,1.14,58219.0,58218.0,0.37725655]
[1617739236680,1.24725655,58219.0,58218.0,0.37725655]
[1617739237082,1.10725655,58219.0,58218.0,0.37725655]
[1617739238686,0.10725655,58219.0,58218.0,0.37725655]
[1617739238884,0.10725655,58219.0,58218.0,0.48091655]
[1617739239284,1.10725655,58219.0,58218.0,0.48091655]
[1617739242285,0.10725655,58219.0,58218.0,0.48091655]
[1617739242489,0.14,58220.0,58218.0,0.48091655]
[1617739243487,0.14,58220.0,58218.0,1.98091655]
[1617739244089,0.14,58220.0,58219.0,0.58328421]
[1617739244286,1.0,58245.0,58219.0,2.08328421]
[1617739244488,1.0,58248.0,58219.0,2.35328421]
[1617739244687,1.0,58248.0,58244.0,0.10725655]
[1617739245092,1.0,58248.0,58244.0,0.26530655]
[1617739245289,1.0,58253.0,58245.0,0.27]
[1617739245696,0.12967994,58258.0,58245.0,0.27]
[1617739245889,1.0,58263.0,58245.0,0.27]
[1617739246089,1.0,58265.0,58245.0,0.27]
[1617739246293,1.0,58252.0,58245.0,0.27]
[1617739246690,1.0,58252.0,58250.0,0.10725655]
[1617739246890,1.0,58255.0,58250.0,0.10725655]
[1617739247091,1.0,58255.0,58251.0,0.27]
[1617739247295,1.0,58257.0,58251.0,0.27]
[1617739247492,1.0,58259.0,58251.0,0.27]
[1617739247891,0.2,58275.0,58251.0,0.27]
[1617739247892,1.0,58261.0,58251.0,0.27]
[1617739248090,1.0,58258.0,58251.0,0.27]
[1617739248693,1.0,58258.0,58257.0,0.10725655]
[1617739248894,1.0,58258.0,58257.0,0.21959655]
[1617739249092,1.10725655,58259.0,58257.0,0.22959655]
[1617739249294,0.10725655,58259.0,58257.0,0.22959655]
[1617739250492,0.28,58260.0,58257.0,0.22959655]
[1617739256194,0.28,58260.0,58257.0,0.11725655]
[1617739261900,0.28,58260.0,58257.0,0.11745655]
[1617739263303,1.0,58259.0,58257.0,0.11745655]
[1617739263501,1.28,58260.0,58257.0,0.11745655]
[1617739263702,0.28,58260.0,58257.0,0.11745655]
[1617739264702,1.28,58260.0,58257.0,0.11745655]
[1617739265104,1.0,58259.0,58257.0,0.11745655]
[1617739265303,1.28,58260.0,58257.0,0.11745655]
[1617739265708,1.0,58259.0,58257.0,0.11745655]
[1617739265905,1.0,58258.0,58257.0,0.11745655]
[1617739266906,1.0,58258.0,58257.0,0.0002]
[1617739268107,1.2,58258.0,58257.0,0.0002]
[1617739268507,1.0,58258.0,58257.0,0.0002]
[1617739272608,1.0,58259.0,58257.0,0.0002]
[1617739272809,1.0,58259.0,58258.0,0.10725655]
[1617739273008,0.38725655,58260.0,58258.0,0.10725655]
[1617739273609,1.0,58259.0,58258.0,0.10725655]
[1617739274010,1.38725655,58260.0,58258.0,0.10725655]
[1617739274210,1.0,58259.0,58258.0,0.10725655]
[1617739278618,0.38725655,58260.0,58258.0,0.24581655]
[1617739279417,1.38725655,58260.0,58258.0,0.24581655]
[1617739279715,0.38725655,58260.0,58258.0,0.24581655]
[1617739280817,1.0,58259.0,58258.0,0.24581655]
[1617739281218,1.38725655,58260.0,58258.0,0.24581655]
[1617739281416,0.38725655,58260.0,58258.0,0.24581655]
[1617739283018,0.28,58260.0,58258.0,0.24581655]
[1617739284619,1.0,58262.0,58258.0,0.24581655]
[1617739284821,1.0,58262.0,58258.0,0.10725655]
[1617739285922,1.10725655,58264.0,58258.0,0.10725655]
[1617739286121,0.28,58262.0,58258.0,0.10725655]
[1617739286323,1.28,58262.0,58258.0,0.10725655]
[1617739287322,1.0,58260.0,58258.0,0.10725655]
[1617739288926,0.28,58262.0,58258.0,0.10725655]
[1617739289126,1.28,58262.0,58258.0,0.10725655]
[1617739289526,1.0,58260.0,58258.0,0.10725655]
[1617739290125,1.0,58261.0,58258.0,0.10725655]
[1617739290325,0.28,58262.0,58258.0,0.10725655]
[1617739290326,1.28,58262.0,58258.0,0.10725655]
[1617739292227,0.28,58262.0,58258.0,0.10725655]
[1617739293934,1.28,58262.0,58258.0,0.10725655]
[1617739294330,1.0,58260.0,58258.0,0.10725655]
[1617739294534,1.0,58259.0,58258.0,0.10725655]
[1617739294733,1.0,58259.0,58239.0,0.48718956]
[1617739294933,1.0,58259.0,58247.0,0.10725655]
[1617739295133,0.28,58262.0,58247.0,0.10725655]
[1617739295332,1.0,58251.0,58247.0,0.10725655]
[1617739295535,1.0,58251.0,58248.0,0.27]
[1617739296933,0.10725655,58249.0,58248.0,0.27]
[1617739300039,0.25425655,58249.0,58248.0,0.27]
[1617739301142,1.25425655,58249.0,58248.0,0.27]
[1617739301341,1.25425655,58249.0,58239.0,0.37725655]
[1617739301541,1.25425655,58249.0,58248.0,0.26]
[1617739301942,1.25425655,58249.0,58239.0,0.10725655]
[1617739302142,1.25425655,58249.0,58241.0,0.27]
[1617739302342,1.25425655,58249.0,58248.0,0.26]
[1617739302541,1.25425655,58249.0,58239.0,0.10725655]
[1617739302742,1.25425655,58249.0,58242.0,0.27]
[1617739302942,1.147,58249.0,58248.0,0.25]
[1617739303145,1.147,58249.0,58239.0,0.10725655]
[1617739303342,1.147,58249.0,58243.0,0.27]
[1617739303548,1.147,58249.0,58239.0,0.10725655]
[1617739303549,1.147,58249.0,58248.0,0.24]
[1617739303757,0.50800215,58254.0,58248.0,0.24]
[1617739303958,0.50798669,58252.0,58248.0,0.1122]
[1617739304151,0.50798669,58252.0,58248.0,0.3522]
[1617739304347,0.50798669,58252.0,58248.0,0.1122]
[1617739304548,1.0,58253.0,58248.0,0.1122]
[1617739304749,1.0,58253.0,58249.0,0.27]
[1617739304946,0.50795932,58257.0,58249.0,0.37725655]
[1617739304947,0.10725655,58250.0,58249.0,0.37725655]
[1617739305149,0.10725655,58250.0,58249.0,0.27]
[1617739305350,1.10725655,58250.0,58241.0,0.27]
[1617739305548,1.10725655,58250.0,58240.0,0.01]
[1617739305748,1.10725655,58250.0,58249.0,0.26]
[1617739305949,1.10725655,58250.0,58242.0,0.27]
[1617739306348,1.10725655,58250.0,58235.0,0.49104137]
[1617739306550,1.10725655,58250.0,58243.0,0.27]
[1617739306949,1.10725655,58250.0,58239.0,0.01]
[1617739307152,0.10725655,58244.0,58241.0,0.27]
[1617739307349,0.10725655,58244.0,58240.0,0.01]
[1617739307654,0.10725655,58244.0,58242.0,0.27]
[1617739308056,0.10725655,58244.0,58240.0,0.27]
[1617739308255,0.10725655,58244.0,58243.0,0.27]
[1617739308660,0.10725655,58244.0,58240.0,0.27]
[1617739308855,1.10725655,58244.0,58243.0,0.27]
[1617739309252,1.10725655,58244.0,58240.0,0.27]
[1617739309452,1.10725655,58244.0,58243.0,0.27]
[1617739309852,1.10725655,58244.0,58240.0,0.27]
[1617739310253,1.10725655,58244.0,58243.0,0.27]
[1617739310453,1.0,58241.0,58240.0,0.27]
[1617739310853,1.24805655,58244.0,58243.0,0.27]
[1617739311255,1.24805655,58244.0,58229.0,0.49170422]
[1617739311454,1.24805655,58244.0,58221.0,0.10725655]
[1617739311455,1.75611811,58244.0,58243.0,0.27]
[1617739311855,0.24805655,58244.0,58239.0,0.01]
[1617739312054,0.24805655,58244.0,58243.0,0.26]
[1617739312258,1.24805655,58244.0,58243.0,0.26]
[1617739312457,2.74805655,58244.0,58239.0,0.27]
[1617739312858,6.0,58240.0,58215.0,0.49092711]
[1617739313056,1.5,58239.0,58215.0,0.49092711]
[1617739313257,1.5,58239.0,58212.0,0.49086529]
[1617739313456,7.5,58239.0,58212.0,0.49086529]
[1617739313657,7.63089479,58239.0,58209.0,0.59841467]
[1617739314257,7.63089479,58239.0,58190.0,0.58541204]
[1617739314258,1.63089479,58239.0,58238.0,0.1542]
[1617739314458,1.83089479,58239.0,58208.0,0.49136066]
[1617739314659,8.33723029,58239.0,58202.0,0.58360293]
[1617739315058,0.10725655,58203.0,58197.0,0.59970698]
[1617739315258,1.24899655,58203.0,58197.0,0.59970698]
[1617739315658,1.24899655,58203.0,58198.0,0.26]
[1617739316758,1.0,58199.0,58198.0,0.26]
[1617739317159,1.0,58199.0,58194.0,0.27]
[1617739317559,1.0,58199.0,58198.0,0.27]
[1617739317760,1.0,58199.0,58195.0,0.26]
[1617739318159,1.0,58199.0,58198.0,0.26]
[1617739318558,1.0,58199.0,58196.0,0.26]
[1617739318759,1.0,58199.0,58193.0,0.01]
[1617739318961,1.0,58199.0,58198.0,0.25]
[1617739319159,1.0,58199.0,58194.0,0.27]
[1617739319560,1.0,58199.0,58198.0,0.25]
[1617739319760,1.0,58199.0,58195.0,0.27]
[1617739319962,1.5,58198.0,58195.0,0.27]
[1617739320162,1.5,58198.0,58194.0,0.03]
[1617739320361,1.5,58198.0,58166.0,0.55324104]
[1617739320560,1.0,58196.0,58166.0,0.55324104]
[1617739320761,2.5,58196.0,58160.0,0.55370189]
[1617739320960,2.5,58196.0,58167.0,0.27]
[1617739321162,0.10725655,58168.0,58167.0,0.27]
[1617739321364,0.20541655,58168.0,58162.0,0.10725655]
[1617739321564,0.20541655,58168.0,58163.0,0.01]
[1617739323564,1.0,58166.0,58163.0,0.01]
[1617739323763,1.0,58165.0,58163.0,0.01]
[1617739324166,0.20541655,58168.0,58163.0,0.01]
[1617739324167,1.0,58166.0,58163.0,0.01]
[1617739324365,0.10725655,58168.0,58163.0,0.01]
[1617739324968,0.10725655,58168.0,58164.0,0.052]
[1617739325168,0.10725655,58168.0,58163.0,0.21]
[1617739326570,0.10725655,58168.0,58163.0,0.01]
[1617739327174,0.10725655,58168.0,58163.0,0.21]
[1617739328070,1.0,58185.0,58163.0,0.21]
[1617739328471,1.0,58188.0,58163.0,0.21]
[1617739329072,1.0,58188.0,58174.0,0.10725655]
[1617739329272,1.0,58188.0,58174.0,0.26117655]
[1617739329473,1.0,58187.0,58175.0,0.27]
[1617739329674,1.0,58185.0,58175.0,0.27]
[1617739330073,1.0,58185.0,58164.0,0.27]
[1617739330473,1.0,58185.0,58176.0,0.27]
[1617739330673,1.0,58185.0,58173.0,0.1426]
[1617739331073,1.0,58183.0,58177.0,0.26]
[1617739331272,1.0,58178.0,58174.0,0.01]
[1617739331473,1.0,58179.0,58167.0,0.10725655]
[1617739331674,1.0,58179.0,58178.0,0.27]
[1617739331872,1.5,58206.0,58178.0,0.27]
[1617739331873,1.0,58181.0,58178.0,0.13425]
[1617739332072,1.0,58185.0,58178.0,0.13425]
[1617739332277,1.0,58185.0,58178.0,0.40425]
[1617739332474,1.0,58185.0,58178.0,0.13425]
[1617739332875,1.0,58188.0,58179.0,0.27]
[1617739333074,1.0,58190.0,58182.0,0.10725655]
[1617739333574,1.0,58190.0,58183.0,0.27]
[1617739334375,1.0,58188.0,58183.0,0.27]
[1617739334774,1.5,58212.0,58183.0,0.27]
[1617739334775,1.0,58185.0,58183.0,0.27]
[1617739335174,0.10725655,58184.0,58183.0,0.27]
[1617739340485,1.0,58199.0,58183.0,0.27]
[1617739341085,1.0,58202.0,58183.0,0.27]
[1617739341284,1.0,58206.0,58200.0,0.10725655]
[1617739341485,1.0,58206.0,58200.0,0.24221655]
[1617739341688,1.0,58214.0,58201.0,0.01]
[1617739342085,1.0,58217.0,58201.0,0.01]
[1617739342487,0.2,58242.0,58201.0,1.51]
[1617739342488,1.0,58218.0,58201.0,1.51]
[1617739342685,1.0,58231.0,58201.0,1.51]
[1617739343288,1.0,58232.0,58229.0,0.10725655]
[1617739343487,1.0,58232.0,58229.0,0.26503655]
[1617739343887,1.0,58231.0,58229.0,0.26503655]
[1617739344089,1.0,58238.0,58230.0,0.27]
[1617739344487,1.5,58251.0,58230.0,0.27]
[1617739344688,1.0,58231.0,58230.0,0.27]
[1617739345091,0.49958708,58249.0,58230.0,0.27]
[1617739345291,0.10725655,58231.0,58230.0,0.27]
[1617739346894,1.10725655,58231.0,58230.0,0.27]
[1617739347295,0.10725655,58231.0,58230.0,0.27]
[1617739347494,1.10725655,58231.0,58230.0,0.27]
[1617739348296,0.10725655,58231.0,58230.0,0.27]
[1617739352398,0.10725655,58231.0,58230.0,0.41517]
[1617739359102,1.10725655,58231.0,58230.0,0.41517]
[1617739360204,0.10725655,58231.0,58230.0,0.41517]
[1617739365908,0.10725655,58231.0,58230.0,0.41537]
[1617739366511,1.10725655,58231.0,58230.0,0.2702]
[1617739369213,0.10725655,58231.0,58230.0,0.2702]
[1617739370214,0.1281,58243.0,58230.0,0.2702]
[1617739370415,0.002,58247.0,58231.0,0.2]
[1617739370813,1.0,58254.0,58231.0,0.2]
[1617739371013,1.0,58254.0,58232.0,0.27]
[1617739371414,1.0,58254.0,58249.0,0.10725655]
[1617739371613,1.0,58254.0,58249.0,0.23059655]
[1617739371812,1.0,58254.0,58250.0,0.27]
[1617739372815,1.0,58252.0,58250.0,0.27]
[1617739373016,1.0,58251.0,58250.0,0.27]
[1617739373416,1.10725655,58251.0,58250.0,0.27]
[1617739373817,0.10725655,58251.0,58250.0,0.27]
[1617739375326,1.10725655,58251.0,58250.0,0.27]
[1617739376521,0.10725655,58251.0,58250.0,0.27]
[1617739377522,0.10725655,58251.0,58250.0,0.37725655]
[1617739378525,1.10725655,58251.0,58250.0,0.37725655]
[1617739380225,0.10725655,58251.0,58250.0,0.37725655]
[1617739381027,0.10725655,58251.0,58250.0,0.27]
[1617739381229,1.10725655,58251.0,58250.0,0.27]
[1617739381631,1.10725655,58251.0,58237.0,0.01]
[1617739382030,1.10725655,58251.0,58236.0,0.26]
[1617739382229,1.10725655,58251.0,58235.0,0.10725655]
[1617739382230,1.10725655,58251.0,58238.0,0.27]
[1617739382428,1.0,58244.0,58238.0,0.27]
[1617739382629,1.0,58244.0,58235.0,0.10725655]
[1617739382630,1.0,58244.0,58236.0,0.27]
[1617739382829,1.0,58248.0,58239.0,0.27]
[1617739383229,1.0,58248.0,58236.0,0.27]
[1617739383431,1.0,58248.0,58245.0,0.10725655]
[1617739383833,1.0,58248.0,58246.0,0.01]
[1617739384832,0.002,58253.0,58246.0,0.01]
[1617739385031,1.0,58247.0,58246.0,0.01]
[1617739385431,1.10725655,58247.0,58246.0,0.01]
[1617739386033,0.10725655,58247.0,58246.0,0.01]
[1617739386736,1.10725655,58247.0,58246.0,0.01]
[1617739387133,1.10725655,58247.0,58240.0,0.27]
[1617739387333,0.10725655,58247.0,58240.0,0.27]
[1617739387534,1.0,58251.0,58246.0,0.37725655]
[1617739387732,1.0,58251.0,58246.0,0.10725655]
[1617739387933,1.0,58250.0,58246.0,0.10725655]
[1617739388137,1.0,58249.0,58247.0,0.27]
[1617739389536,0.10725655,58248.0,58247.0,0.27]
[1617739390136,1.10725655,58248.0,58247.0,0.27]
[1617739390337,0.10725655,58248.0,58247.0,0.27]
[1617739390535,0.10725655,58248.0,58247.0,0.47]
[1617739390735,0.10725655,58248.0,58247.0,0.27]
[1617739394738,1.10725655,58248.0,58247.0,0.27]
[1617739397439,0.10725655,58248.0,58247.0,0.27]
[1617739398739,1.10725655,58248.0,58247.0,0.27]
[1617739401446,1.10725655,58248.0,58247.0,0.42686]
[1617739403552,1.10725655,58248.0,58247.0,0.27]
[1617739404153,1.20908655,58248.0,58247.0,0.27]
[1617739404750,0.20908655,58248.0,58247.0,0.27]
[1617739404953,1.20908655,58248.0,58247.0,0.27]
[1617739405150,1.20908655,58248.0,58233.0,0.27]
[1617739405552,1.10183,58248.0,58247.0,0.27]
[1617739405753,1.10183,58248.0,58237.0,0.10725655]
[1617739405952,1.0,58248.0,58237.0,0.10725655]
[1617739406154,1.0,58248.0,58247.0,0.27]
[1617739406354,1.0,58248.0,58238.0,0.01]
[1617739406554,1.0,58248.0,58237.0,0.10725655]
[1617739406754,1.0,58248.0,58238.0,0.27]
[1617739406953,1.0,58248.0,58238.0,0.41983]
[1617739407154,1.0,58241.0,58238.0,0.41983]
[1617739407558,0.10725655,58240.0,58238.0,0.41983]
[1617739408355,1.0,58241.0,58238.0,0.41983]
[1617739408755,1.0,58242.0,58238.0,0.41983]
[1617739408956,0.002,58251.0,58238.0,0.41983]
[1617739409158,1.0,58243.0,58238.0,0.41983]
[1617739409360,1.0,58250.0,58238.0,0.41983]
[1617739409557,1.0,58250.0,58244.0,0.10725655]
[1617739409757,1.002,58251.0,58244.0,0.10725655]
[1617739410159,1.002,58251.0,58245.0,0.27]
[1617739410759,0.002,58251.0,58245.0,0.27]
[1617739411560,0.10725655,58246.0,58245.0,0.27]
[1617739413260,1.10725655,58246.0,58245.0,0.27]
[1617739413661,1.10725655,58246.0,58239.0,0.27]
[1617739413871,1.10725655,58246.0,58245.0,0.26]
[1617739414070,0.10725655,58246.0,58245.0,0.26]
[1617739414269,1.0,58243.0,58235.0,0.01]
[1617739414471,1.0,58243.0,58234.0,0.10725655]
[1617739414664,1.0,58243.0,58235.0,0.27]
[1617739415563,1.0,58243.0,58241.0,0.10725655]
[1617739415968,1.0,58243.0,58242.0,0.01]
[1617739416763,1.0,58244.0,58242.0,0.01]
[1617739417165,1.0,58243.0,58242.0,0.01]
[1617739417365,1.0,58244.0,58242.0,0.01]
[1617739417565,0.10725655,58243.0,58242.0,0.01]
[1617739418566,1.10725655,58243.0,58242.0,0.01]
[1617739426576,0.10725655,58243.0,58242.0,0.15456]
[1617739430483,0.10725655,58243.0,58242.0,0.01]
[1617739432584,0.10725655,58243.0,58242.0,0.16613]
[1617739435386,0.10725655,58243.0,58242.0,0.01]
[1617739436185,0.10725655,58243.0,58228.0,0.27]
[1617739436186,1.10725655,58243.0,58228.0,0.27]
[1617739436385,1.10725655,58243.0,58242.0,0.01]
[1617739436786,1.10725655,58243.0,58226.0,0.4829]
[1617739436987,1.10725655,58243.0,58242.0,0.27]
[1617739437389,1.10725655,58243.0,58226.0,0.4829]
[1617739437589,1.10725655,58243.0,58242.0,0.26]
[1617739437990,1.10725655,58243.0,58228.0,0.10725655]
[1617739438191,1.10725655,58243.0,58229.0,0.27]
[1617739438389,1.0,58237.0,58229.0,0.27]
[1617739438894,1.0,58238.0,58229.0,0.27]
[1617739439305,0.10725655,58243.0,58229.0,0.38289]
[1617739439306,1.0,58239.0,58229.0,0.38289]
[1617739439509,0.10725655,58243.0,58229.0,0.38289]
[1617739439705,1.002,58248.0,58239.0,0.10725655]
[1617739439706,1.51036658,58248.0,58239.0,0.10725655]
[1617739439901,0.51036658,58248.0,58239.0,0.10725655]
[1617739440098,0.002,58248.0,58239.0,0.10725655]
[1617739440300,0.002,58248.0,58240.0,0.27]
[1617739441594,1.002,58248.0,58240.0,0.27]
[1617739441794,0.10725655,58241.0,58240.0,0.27]
[1617739454812,1.10725655,58241.0,58240.0,0.27]
[1617739456015,1.10725655,58241.0,58234.0,0.10725655]
[1617739456215,1.10725655,58241.0,58235.0,0.01]
[1617739457317,1.0,58240.0,58235.0,0.01]
[1617739457918,1.0,58236.0,58235.0,0.01]
[1617739458520,1.0,58236.0,58227.0,0.27]
[1617739458720,1.0,58236.0,58235.0,0.27]
[1617739459120,1.0,58236.0,58227.0,0.27]
[1617739459321,1.0,58236.0,58235.0,0.27]
[1617739459721,1.0,58236.0,58227.0,0.27]
[1617739460121,1.0,58236.0,58235.0,0.27]
[1617739460322,1.0,58236.0,58227.0,0.27]
[1617739460722,1.0,58236.0,58235.0,0.27]
[1617739461125,1.0,58236.0,58227.0,0.27]
[1617739461332,1.0,58236.0,58235.0,0.27]
[1617739461726,1.0,58236.0,58227.0,0.27]
[1617739461938,1.0,58239.0,58235.0,0.27]
[1617739462324,0.002,58240.0,58226.0,0.59015655]
[1617739462325,1.0,58240.0,58227.0,0.27]
[1617739462729,1.10725655,58241.0,58227.0,0.27]
[1617739463724,1.0,58240.0,58227.0,0.27]
[1617739463925,1.0,58240.0,58233.0,0.10725655]
[1617739464126,1.0,58240.0,58233.0,0.23598655]
[1617739464325,1.0,58238.0,58234.0,0.27]
[1617739464726,1.0,58235.0,58234.0,0.27]
[1617739465926,1.10725655,58235.0,58234.0,0.27]
[1617739471837,0.10725655,58235.0,58234.0,0.27]
[1617739472838,1.10725655,58235.0,58234.0,0.27]
[1617739474039,0.10725655,58235.0,58234.0,0.27]
[1617739475038,1.10725655,58235.0,58234.0,0.27]
[1617739476540,0.10725655,58235.0,58234.0,0.27]
[1617739512077,0.22118655,58235.0,58234.0,0.27]
[1617739512873,1.22118655,58235.0,58227.0,0.27]
[1617739513078,1.22118655,58235.0,58234.0,0.27]
[1617739513275,0.22118655,58235.0,58234.0,0.27]
[1617739513474,0.22118655,58235.0,58226.0,0.4829]
[1617739513475,0.22118655,58235.0,58227.0,0.27]
[1617739513675,0.22118655,58235.0,58234.0,0.27]
[1617739514076,0.22118655,58235.0,58227.0,0.27]
[1617739514279,0.72966406,58235.0,58227.0,0.27]
[1617739515276,1.0,58229.0,58227.0,0.27]
[1617739515476,1.0,58228.0,58227.0,0.27]
[1617739516077,1.10725655,58228.0,58227.0,0.27]
[1617739519981,0.10725655,58228.0,58227.0,0.27]
[1617739533201,1.0,58236.0,58227.0,0.27]
[1617739534299,0.50784342,58246.0,58235.0,0.10725655]
[1617739534497,1.0,58245.0,58235.0,0.10725655]
[1617739534697,1.0,58245.0,58236.0,0.27]
[1617739535600,1.0,58244.0,58236.0,0.27]
[1617739536200,0.10725655,58237.0,58236.0,0.27]
[1617739547715,1.10725655,58237.0,58236.0,0.27]
[1617739549518,0.10725655,58237.0,58236.0,0.27]
[1617739553723,0.10725655,58237.0,58236.0,0.2702]
[1617739556231,0.10684212,58237.0,58236.0,0.2702]
[1617739556430,1.10684212,58237.0,58236.0,0.2702]
[1617739556629,1.23294212,58237.0,58236.0,0.2702]
[1617739557831,1.10684212,58237.0,58236.0,0.2702]
[1617739561836,0.10684212,58237.0,58236.0,0.41102]
[1617739581260,0.10684212,58237.0,58236.0,0.2702]
[1617739584763,1.10684212,58237.0,58236.0,0.2702]
[1617739587866,1.27310714,58237.0,58236.0,0.2702]
[1617739588366,1.10684212,58237.0,58236.0,0.2702]
[1617739589166,0.10684212,58237.0,58236.0,0.2702]
[1617739589367,1.10684212,58237.0,58236.0,0.2702]
[1617739592076,0.10684212,58237.0,58236.0,0.2702]
[1617739621315,1.10684212,58237.0,58236.0,0.2702]
[1617739623721,0.10684212,58237.0,58236.0,0.2702]
[1617739625819,1.10684212,58237.0,58236.0,0.2702]
[1617739626019,0.10684212,58237.0,58236.0,0.2702]
[1617739626621,1.10684212,58237.0,58236.0,0.2702]
[1617739628831,1.10684212,58237.0,58236.0,0.26895]
[1617739630229,1.10684212,58237.0,58236.0,0.41502]
[1617739631029,0.10684212,58237.0,58236.0,0.41502]
[1617739635934,1.10684212,58237.0,58236.0,0.41502]
[1617739636135,0.10684212,58237.0,58236.0,0.41502]
[1617739636938,1.10684212,58237.0,58236.0,0.41502]
[1617739637138,1.10684212,58237.0,58236.0,0.26895]
[1617739647849,0.10684212,58237.0,58236.0,0.26895]
[1617739654855,1.10684212,58237.0,58236.0,0.26895]
[1617739655255,0.10684212,58237.0,58236.0,0.26895]